[Event "Titled Tuesday Blitz June 27 Late 2023"]
[White "Hansen, Eric"]
[Black "Rosen, Eric"]
[WhiteFideId "2606771"]
[BlackFideId "2032562"]
[WhiteElo "2868"]
[BlackElo "2688"]
[Result "1-0"]
[Round "11"]
[TimeControl "180+2"]
[Date "2023.06.27"]
[WhiteClock "0:00:03"]
[BlackClock "0:00:00"]
[Board "20"]

1. c4 {[%clk 0:03:00]}  e6 {[%clk 0:03:00]} 2. d4 {[%clk 0:02:55]}  d5 {[%clk 0:02:59]} 3. Nc3 {[%clk 0:02:55]}  Nf6 {[%clk 0:03:00]} 4. cxd5 {[%clk 0:02:52]}  exd5 {[%clk 0:03:00]} 5. Bg5 {[%clk 0:02:52]}  c6 {[%clk 0:03:00]} 6. e3 {[%clk 0:02:52]}  Bd6 {[%clk 0:02:56]} 7. Bd3 {[%clk 0:02:47]}  h6 {[%clk 0:02:55]} 8. Bh4 {[%clk 0:02:46]}  O-O {[%clk 0:02:56]} 9. Qc2 {[%clk 0:02:46]}  Re8 {[%clk 0:02:55]} 10. Nf3 {[%clk 0:02:43]}  Be6 {[%clk 0:02:55]} 11. O-O {[%clk 0:02:36]}  Nbd7 {[%clk 0:02:56]} 12. Rab1 {[%clk 0:02:33]}  a5 {[%clk 0:02:55]} 13. a3 {[%clk 0:02:33]}  Rc8 {[%clk 0:02:46]} 14. Na4 {[%clk 0:02:31]}  b5 {[%clk 0:02:41]} 15. Nc5 {[%clk 0:02:24]}  Nxc5 {[%clk 0:02:26]} 16. dxc5 {[%clk 0:02:24]}  Be7 {[%clk 0:02:23]} 17. Nd4 {[%clk 0:02:23]}  Bd7 {[%clk 0:02:15]} 18. b4 {[%clk 0:02:18]}  a4 {[%clk 0:02:04]} 19. Rbd1 {[%clk 0:02:16]}  Nh5 {[%clk 0:01:48]} 20. Bh7+ {[%clk 0:02:05]}  Kf8 {[%clk 0:01:41]} 21. Bxe7+ {[%clk 0:02:03]}  Qxe7 {[%clk 0:01:39]} 22. Bf5 {[%clk 0:02:03]}  Bxf5 {[%clk 0:01:30]} 23. Nxf5 {[%clk 0:02:01]}  Qg5 {[%clk 0:00:51]} 24. Nd6 {[%clk 0:02:00]}  Nf6 {[%clk 0:00:52]} 25. Rd4 {[%clk 0:01:56]}  Kg8 {[%clk 0:00:46]} 26. Rfd1 {[%clk 0:01:49]}  Rcd8 {[%clk 0:00:46]} 27. Nxe8 {[%clk 0:01:47]}  Rxe8 {[%clk 0:00:47]} 28. h3 {[%clk 0:01:22]}  Re7 {[%clk 0:00:46]} 29. Rf4 {[%clk 0:01:17]}  Qe5 {[%clk 0:00:42]} 30. Rdd4 {[%clk 0:01:14]}  Ne4 {[%clk 0:00:39]} 31. Qd1 {[%clk 0:01:08]}  f5 {[%clk 0:00:27]} 32. Qh5 {[%clk 0:00:54]}  Rf7 {[%clk 0:00:27]} 33. Rfxe4 {[%clk 0:00:31]}  dxe4 {[%clk 0:00:21]} 34. g3 {[%clk 0:00:31]}  Rf6 {[%clk 0:00:13]} 35. h4 {[%clk 0:00:31]}  Kh7 {[%clk 0:00:13]} 36. Kg2 {[%clk 0:00:30]}  Qe7 {[%clk 0:00:11]} 37. Qd1 {[%clk 0:00:29]}  Qf7 {[%clk 0:00:04]} 38. Rd7 {[%clk 0:00:27]}  Qg6 {[%clk 0:00:05]} 39. Qd4 {[%clk 0:00:26]}  f4 {[%clk 0:00:04]} 40. exf4 {[%clk 0:00:22]}  Rxf4 {[%clk 0:00:04]} 41. Rd6 {[%clk 0:00:04]}  Qg4 {[%clk 0:00:05]} 42. Rxc6 {[%clk 0:00:01]}  Qf3+ {[%clk 0:00:05]} 43. Kg1 {[%clk 0:00:02]}  Rf7 {[%clk 0:00:04]} 44. Qe3 {[%clk 0:00:01]}  Qg4 {[%clk 0:00:04]} 45. Rd6 {[%clk 0:00:01]}  Qf5 {[%clk 0:00:03]} 46. Rd4 {[%clk 0:00:01]}  Re7 {[%clk 0:00:04]} 47. c6 {[%clk 0:00:02]}  Qe5 {[%clk 0:00:03]} 48. Rd7 {[%clk 0:00:02]}  Rxd7 {[%clk 0:00:02]} 49. cxd7 {[%clk 0:00:03]}  Qd5 {[%clk 0:00:03]} 50. Kg2 {[%clk 0:00:04]}  Qxd7 {[%clk 0:00:03]} 51. Qxe4+ {[%clk 0:00:04]}  Kh8 {[%clk 0:00:04]} 52. h5 {[%clk 0:00:05]}  Kg8 {[%clk 0:00:02]} 53. g4 {[%clk 0:00:05]}  Kh8 {[%clk 0:00:01]} 54. Qa8+ {[%clk 0:00:05]}  Kh7 {[%clk 0:00:01]} 55. Qe4+ {[%clk 0:00:06]}  Kg8 {[%clk 0:00:02]} 56. f3 {[%clk 0:00:06]}  Kh8 {[%clk 0:00:02]} 57. Kh3 {[%clk 0:00:06]}  Kg8 {[%clk 0:00:03]} 58. Qe5 {[%clk 0:00:05]}  Kh8 {[%clk 0:00:02]} 59. Kg3 {[%clk 0:00:05]}  Kg8 {[%clk 0:00:03]} 60. Kf4 {[%clk 0:00:03]}  Qf7+ {[%clk 0:00:03]} 61. Kg3 {[%clk 0:00:03]}  Qd7 {[%clk 0:00:02]} 62. Qc5 {[%clk 0:00:03]}  Kh8 {[%clk 0:00:03]} 63. Qf8+ {[%clk 0:00:02]}  Kh7 {[%clk 0:00:03]} 64. Qf5+ {[%clk 0:00:02]}  Qxf5 {[%clk 0:00:03]} 65. gxf5 {[%clk 0:00:03]}  Kg8 {[%clk 0:00:04]} 66. Kf4 {[%clk 0:00:04]}  Kf8 {[%clk 0:00:04]} 67. Ke5 {[%clk 0:00:04]}  Ke7 {[%clk 0:00:00]} 68. f6+ {[%clk 0:00:03]} 1-0


[Site "https://www.chess.com"]

[Event "Titled Tuesday Blitz June 27 Late 2023"]
[White "Bazeev, German"]
[Black "Goryachkina, Aleksandra"]
[WhiteFideId "24119350"]
[BlackFideId "4147103"]
[WhiteElo "2808"]
[BlackElo "2673"]
[Result "0-1"]
[Round "11"]
[TimeControl "180+2"]
[Date "2023.06.27"]
[WhiteClock "0:00:06"]
[BlackClock "0:01:22"]
[Board "22"]

1. d4 {[%clk 0:01:36]}  Nf6 {[%clk 0:02:58]} 2. Nf3 {[%clk 0:01:33]}  d5 {[%clk 0:02:58]} 3. c4 {[%clk 0:01:33]}  e6 {[%clk 0:02:58]} 4. g3 {[%clk 0:01:33]}  dxc4 {[%clk 0:02:57]} 5. Bg2 {[%clk 0:01:33]}  Bb4+ {[%clk 0:02:57]} 6. Bd2 {[%clk 0:01:32]}  a5 {[%clk 0:02:57]} 7. a3 {[%clk 0:01:31]}  Be7 {[%clk 0:02:57]} 8. Qc2 {[%clk 0:01:32]}  b5 {[%clk 0:02:45]} 9. a4 {[%clk 0:01:30]}  c6 {[%clk 0:02:41]} 10. O-O {[%clk 0:01:26]}  O-O {[%clk 0:02:41]} 11. b3 {[%clk 0:01:23]}  cxb3 {[%clk 0:02:37]} 12. Qxb3 {[%clk 0:01:24]}  b4 {[%clk 0:02:36]} 13. Bg5 {[%clk 0:01:20]}  Ba6 {[%clk 0:02:33]} 14. Re1 {[%clk 0:01:16]}  Nbd7 {[%clk 0:02:32]} 15. Nbd2 {[%clk 0:01:16]}  Rc8 {[%clk 0:02:26]} 16. Bxf6 {[%clk 0:01:11]}  Nxf6 {[%clk 0:02:15]} 17. Ne5 {[%clk 0:00:42]}  Nd5 {[%clk 0:02:14]} 18. Ne4 {[%clk 0:00:33]}  c5 {[%clk 0:02:04]} 19. dxc5 {[%clk 0:00:27]}  Bxc5 {[%clk 0:02:03]} 20. Rad1 {[%clk 0:00:24]}  Qe7 {[%clk 0:01:58]} 21. Nxc5 {[%clk 0:00:23]}  Rxc5 {[%clk 0:01:53]} 22. Bxd5 {[%clk 0:00:22]}  exd5 {[%clk 0:01:38]} 23. Rxd5 {[%clk 0:00:06]}  Bc4 {[%clk 0:01:22]} 0-1


[Site "https://www.chess.com"]

[Event "Titled Tuesday Blitz June 27 Late 2023"]
[White "Alex_Sahakyan2006"]
[Black "Leitao, Rafael"]
[BlackFideId "2101246"]
[WhiteElo "2687"]
[BlackElo "2796"]
[Result "1-0"]
[Round "11"]
[TimeControl "180+2"]
[Date "2023.06.27"]
[WhiteClock "0:00:31"]
[BlackClock "0:00:08"]
[Board "23"]

1. d4 {[%clk 0:03:00]}  Nf6 {[%clk 0:02:58]} 2. c4 {[%clk 0:03:00]}  g6 {[%clk 0:02:58]} 3. Nc3 {[%clk 0:02:59]}  Bg7 {[%clk 0:02:59]} 4. e4 {[%clk 0:02:51]}  d6 {[%clk 0:02:59]} 5. f4 {[%clk 0:02:48]}  c5 {[%clk 0:02:57]} 6. d5 {[%clk 0:02:47]}  O-O {[%clk 0:02:56]} 7. Nf3 {[%clk 0:02:48]}  e6 {[%clk 0:02:57]} 8. Be2 {[%clk 0:02:48]}  exd5 {[%clk 0:02:57]} 9. cxd5 {[%clk 0:02:49]}  Bg4 {[%clk 0:02:48]} 10. O-O {[%clk 0:02:48]}  Nbd7 {[%clk 0:02:41]} 11. h3 {[%clk 0:02:48]}  Bxf3 {[%clk 0:02:40]} 12. Bxf3 {[%clk 0:02:49]}  a6 {[%clk 0:02:38]} 13. g4 {[%clk 0:02:49]}  b5 {[%clk 0:02:31]} 14. g5 {[%clk 0:02:49]}  Ne8 {[%clk 0:02:31]} 15. h4 {[%clk 0:02:49]}  c4 {[%clk 0:02:13]} 16. h5 {[%clk 0:02:43]}  Nc5 {[%clk 0:02:13]} 17. hxg6 {[%clk 0:02:43]}  fxg6 {[%clk 0:02:09]} 18. Be3 {[%clk 0:02:41]}  Nd3 {[%clk 0:02:04]} 19. Bg4 {[%clk 0:02:40]}  Nc7 {[%clk 0:02:04]} 20. Qd2 {[%clk 0:01:53]}  b4 {[%clk 0:01:46]} 21. Ne2 {[%clk 0:01:42]}  Qe7 {[%clk 0:01:31]} 22. Ng3 {[%clk 0:01:35]}  Bxb2 {[%clk 0:01:31]} 23. Rab1 {[%clk 0:01:34]}  Bc3 {[%clk 0:01:30]} 24. Qh2 {[%clk 0:01:31]}  Qg7 {[%clk 0:01:26]} 25. e5 {[%clk 0:01:09]}  dxe5 {[%clk 0:01:14]} 26. f5 {[%clk 0:01:03]}  Nxd5 {[%clk 0:01:14]} 27. f6 {[%clk 0:01:03]}  Qf7 {[%clk 0:01:12]} 28. Qh3 {[%clk 0:00:56]}  Rfe8 {[%clk 0:01:06]} 29. Nf5 {[%clk 0:00:48]}  gxf5 {[%clk 0:01:04]} 30. Bh5 {[%clk 0:00:48]}  Qb7 {[%clk 0:00:39]} 31. f7+ {[%clk 0:00:45]}  Kh8 {[%clk 0:00:37]} 32. Bg6 {[%clk 0:00:40]}  Qxf7 {[%clk 0:00:27]} 33. Bxf7 {[%clk 0:00:39]}  Nxe3 {[%clk 0:00:27]} 34. g6 {[%clk 0:00:38]}  Kg7 {[%clk 0:00:26]} 35. Qxh7+ {[%clk 0:00:34]}  Kf6 {[%clk 0:00:27]} 36. Qh4+ {[%clk 0:00:34]}  Kg7 {[%clk 0:00:27]} 37. Qh7+ {[%clk 0:00:31]}  Kf6 {[%clk 0:00:27]} 38. g7 {[%clk 0:00:31]}  Nf4 {[%clk 0:00:11]} 39. Rxf4 {[%clk 0:00:31]}  exf4 {[%clk 0:00:11]} 40. Qg6+ {[%clk 0:00:31]}  Ke5 {[%clk 0:00:08]} 41. Bxe8 {[%clk 0:00:31]} 1-0


[Site "https://www.chess.com"]

[Event "Titled Tuesday Blitz June 27 Late 2023"]
[White "Janaszak, Dawid"]
[Black "Aradhya, Garg"]
[WhiteFideId "1119206"]
[BlackFideId "25006746"]
[WhiteElo "2597"]
[BlackElo "2753"]
[Result "0-1"]
[Round "11"]
[TimeControl "180+2"]
[Date "2023.06.27"]
[WhiteClock "0:00:00"]
[BlackClock "0:00:26"]
[Board "25"]

1. d4 {[%clk 0:03:00]}  d5 {[%clk 0:02:59]} 2. Bf4 {[%clk 0:03:00]}  Nf6 {[%clk 0:02:59]} 3. Nf3 {[%clk 0:03:00]}  Bf5 {[%clk 0:02:58]} 4. e3 {[%clk 0:03:00]}  e6 {[%clk 0:02:58]} 5. Bd3 {[%clk 0:03:00]}  Bxd3 {[%clk 0:02:57]} 6. Qxd3 {[%clk 0:03:00]}  c5 {[%clk 0:02:58]} 7. dxc5 {[%clk 0:02:49]}  Bxc5 {[%clk 0:02:56]} 8. Nbd2 {[%clk 0:02:46]}  O-O {[%clk 0:02:52]} 9. O-O {[%clk 0:02:45]}  Nc6 {[%clk 0:02:52]} 10. a3 {[%clk 0:02:45]}  Re8 {[%clk 0:02:34]} 11. Ne5 {[%clk 0:02:42]}  Bd6 {[%clk 0:02:32]} 12. Nxc6 {[%clk 0:02:41]}  bxc6 {[%clk 0:02:32]} 13. Bxd6 {[%clk 0:02:29]}  Qxd6 {[%clk 0:02:33]} 14. h3 {[%clk 0:02:28]}  a5 {[%clk 0:02:33]} 15. c4 {[%clk 0:02:27]}  a4 {[%clk 0:02:32]} 16. Rac1 {[%clk 0:02:22]}  Reb8 {[%clk 0:02:30]} 17. Rc2 {[%clk 0:02:20]}  Qe5 {[%clk 0:02:26]} 18. Nf3 {[%clk 0:02:16]}  Qe4 {[%clk 0:02:25]} 19. Rd1 {[%clk 0:02:07]}  Ra6 {[%clk 0:02:11]} 20. cxd5 {[%clk 0:02:04]}  Qxd3 {[%clk 0:02:11]} 21. Rxd3 {[%clk 0:02:04]}  cxd5 {[%clk 0:02:11]} 22. Rd4 {[%clk 0:01:51]}  g6 {[%clk 0:02:08]} 23. Ne5 {[%clk 0:01:50]}  Ne4 {[%clk 0:02:04]} 24. f3 {[%clk 0:01:33]}  Nd6 {[%clk 0:02:04]} 25. Nc6 {[%clk 0:01:16]}  Rb3 {[%clk 0:01:52]} 26. Nb4 {[%clk 0:01:08]}  Rb6 {[%clk 0:01:49]} 27. e4 {[%clk 0:00:55]}  dxe4 {[%clk 0:01:38]} 28. fxe4 {[%clk 0:00:52]}  Re3 {[%clk 0:01:38]} 29. Nc6 {[%clk 0:00:39]}  Nxe4 {[%clk 0:01:32]} 30. Rxa4 {[%clk 0:00:37]}  h5 {[%clk 0:01:11]} 31. h4 {[%clk 0:00:34]}  Kg7 {[%clk 0:01:03]} 32. Rb4 {[%clk 0:00:33]}  Rxb4 {[%clk 0:00:58]} 33. Nxb4 {[%clk 0:00:32]}  Re1+ {[%clk 0:00:51]} 34. Kh2 {[%clk 0:00:32]}  Rb1 {[%clk 0:00:51]} 35. Nd3 {[%clk 0:00:27]}  Rd1 {[%clk 0:00:48]} 36. Nf2 {[%clk 0:00:25]}  Nxf2 {[%clk 0:00:47]} 37. Rxf2 {[%clk 0:00:26]}  Rd3 {[%clk 0:00:48]} 38. Rf3 {[%clk 0:00:25]}  Rd2 {[%clk 0:00:46]} 39. Rb3 {[%clk 0:00:25]}  Rd4 {[%clk 0:00:45]} 40. Kg3 {[%clk 0:00:20]}  Rg4+ {[%clk 0:00:43]} 41. Kh3 {[%clk 0:00:20]}  Kf6 {[%clk 0:00:43]} 42. Rf3+ {[%clk 0:00:17]}  Ke7 {[%clk 0:00:43]} 43. b4 {[%clk 0:00:17]}  Rc4 {[%clk 0:00:43]} 44. Rb3 {[%clk 0:00:17]}  Kd6 {[%clk 0:00:40]} 45. Rf3 {[%clk 0:00:17]}  f5 {[%clk 0:00:39]} 46. Rg3 {[%clk 0:00:18]}  Rg4 {[%clk 0:00:39]} 47. Rxg4 {[%clk 0:00:17]}  hxg4+ {[%clk 0:00:39]} 48. Kg3 {[%clk 0:00:18]}  e5 {[%clk 0:00:34]} 49. b5 {[%clk 0:00:19]}  Kc5 {[%clk 0:00:34]} 50. a4 {[%clk 0:00:19]}  Kb6 {[%clk 0:00:33]} 51. Kf2 {[%clk 0:00:20]}  f4 {[%clk 0:00:33]} 52. Ke2 {[%clk 0:00:19]}  e4 {[%clk 0:00:33]} 53. Kf2 {[%clk 0:00:19]}  g3+ {[%clk 0:00:30]} 54. Ke2 {[%clk 0:00:18]}  Ka5 {[%clk 0:00:30]} 55. Kf1 {[%clk 0:00:17]}  f3 {[%clk 0:00:31]} 56. Kg1 {[%clk 0:00:15]}  e3 {[%clk 0:00:26]} 57. Kf1 {[%clk 0:00:14]}  e2+ {[%clk 0:00:26]} 58. Ke1 {[%clk 0:00:00]}  fxg2 {[%clk 0:00:26]} 0-1


[Site "https://www.chess.com"]

[Event "Titled Tuesday Blitz June 27 Late 2023"]
[White "Sargsyan, Anna M."]
[Black "Krzyzanowski, Marcin"]
[WhiteFideId "13308130"]
[BlackFideId "1132199"]
[WhiteElo "2596"]
[BlackElo "2832"]
[Result "1-0"]
[Round "11"]
[TimeControl "180+2"]
[Date "2023.06.27"]
[WhiteClock "0:00:20"]
[BlackClock "0:00:00"]
[Board "28"]

1. d4 {[%clk 0:03:00]}  d5 {[%clk 0:02:59]} 2. c4 {[%clk 0:03:01]}  e6 {[%clk 0:02:58]} 3. Nc3 {[%clk 0:03:01]}  Nf6 {[%clk 0:02:56]} 4. Nf3 {[%clk 0:03:01]}  Be7 {[%clk 0:02:54]} 5. Bf4 {[%clk 0:03:00]}  O-O {[%clk 0:02:54]} 6. e3 {[%clk 0:02:59]}  b6 {[%clk 0:02:54]} 7. cxd5 {[%clk 0:02:58]}  Nxd5 {[%clk 0:02:54]} 8. Nxd5 {[%clk 0:02:58]}  Qxd5 {[%clk 0:02:37]} 9. a3 {[%clk 0:02:59]}  Bb7 {[%clk 0:02:27]} 10. Bxc7 {[%clk 0:02:58]}  Nc6 {[%clk 0:02:23]} 11. Be2 {[%clk 0:02:40]}  Na5 {[%clk 0:02:22]} 12. O-O {[%clk 0:02:33]}  Rac8 {[%clk 0:02:21]} 13. Rc1 {[%clk 0:02:19]}  Qa2 {[%clk 0:01:46]} 14. Rc2 {[%clk 0:02:04]}  Be4 {[%clk 0:01:22]} 15. Bd3 {[%clk 0:02:00]}  Bxf3 {[%clk 0:00:58]} 16. Qxf3 {[%clk 0:01:59]}  Qb3 {[%clk 0:00:58]} 17. Qe2 {[%clk 0:01:47]}  Qd5 {[%clk 0:00:50]} 18. Ba6 {[%clk 0:01:39]}  Ra8 {[%clk 0:00:49]} 19. b4 {[%clk 0:01:33]}  Nc6 {[%clk 0:00:38]} 20. Qc4 {[%clk 0:01:01]}  Qxc4 {[%clk 0:00:31]} 21. Rxc4 {[%clk 0:01:02]}  Nd8 {[%clk 0:00:30]} 22. Rfc1 {[%clk 0:00:59]}  f6 {[%clk 0:00:29]} 23. e4 {[%clk 0:00:55]}  Kf7 {[%clk 0:00:30]} 24. d5 {[%clk 0:00:54]}  f5 {[%clk 0:00:16]} 25. d6 {[%clk 0:00:43]}  Bg5 {[%clk 0:00:16]} 26. Re1 {[%clk 0:00:35]}  g6 {[%clk 0:00:17]} 27. g3 {[%clk 0:00:35]}  Bf6 {[%clk 0:00:17]} 28. e5 {[%clk 0:00:34]}  Bg7 {[%clk 0:00:15]} 29. f4 {[%clk 0:00:34]}  h6 {[%clk 0:00:14]} 30. Kf2 {[%clk 0:00:32]}  g5 {[%clk 0:00:14]} 31. Bxd8 {[%clk 0:00:25]}  Raxd8 {[%clk 0:00:11]} 32. Rc7+ {[%clk 0:00:26]}  Kg6 {[%clk 0:00:11]} 33. Re7 {[%clk 0:00:24]}  h5 {[%clk 0:00:08]} 34. Rxe6+ {[%clk 0:00:24]}  Kh7 {[%clk 0:00:08]} 35. Rc1 {[%clk 0:00:21]}  Rf7 {[%clk 0:00:06]} 36. Rc7 {[%clk 0:00:19]}  Rdf8 {[%clk 0:00:04]} 37. Ree7 {[%clk 0:00:19]}  Rxe7 {[%clk 0:00:02]} 38. dxe7 {[%clk 0:00:19]}  Re8 {[%clk 0:00:01]} 39. Bb5 {[%clk 0:00:20]}  Rb8 {[%clk 0:00:00]} 40. e8=Q {[%clk 0:00:20]} 1-0


[Site "https://www.chess.com"]

[Event "Titled Tuesday Blitz June 27 Late 2023"]
[White "Tristan, Leonardo"]
[Black "Manukyan, Artyom"]
[WhiteFideId "113816"]
[BlackFideId "13305786"]
[WhiteElo "2765"]
[BlackElo "2589"]
[Result "1-0"]
[Round "11"]
[TimeControl "180+2"]
[Date "2023.06.27"]
[WhiteClock "0:01:15"]
[BlackClock "0:01:29"]
[Board "29"]

1. d4 {[%clk 0:03:00]}  d5 {[%clk 0:02:57]} 2. Nf3 {[%clk 0:03:01]}  Nf6 {[%clk 0:02:57]} 3. Bf4 {[%clk 0:03:01]}  c5 {[%clk 0:02:58]} 4. e3 {[%clk 0:03:02]}  Nc6 {[%clk 0:02:59]} 5. Nbd2 {[%clk 0:03:02]}  Nh5 {[%clk 0:02:59]} 6. dxc5 {[%clk 0:03:02]}  Nxf4 {[%clk 0:02:58]} 7. exf4 {[%clk 0:03:03]}  Qa5 {[%clk 0:02:58]} 8. c4 {[%clk 0:02:43]}  Qxc5 {[%clk 0:02:56]} 9. a3 {[%clk 0:02:39]}  Qd6 {[%clk 0:02:48]} 10. cxd5 {[%clk 0:02:39]}  Qxd5 {[%clk 0:02:46]} 11. Bc4 {[%clk 0:02:39]}  Qh5 {[%clk 0:02:43]} 12. O-O {[%clk 0:02:26]}  e6 {[%clk 0:02:42]} 13. Ne4 {[%clk 0:02:19]}  Be7 {[%clk 0:02:34]} 14. Nd6+ {[%clk 0:02:19]}  Kf8 {[%clk 0:02:33]} 15. Nxc8 {[%clk 0:02:06]}  Rxc8 {[%clk 0:02:34]} 16. Qd7 {[%clk 0:02:06]}  Rb8 {[%clk 0:02:30]} 17. b4 {[%clk 0:01:59]}  a6 {[%clk 0:02:25]} 18. Bxa6 {[%clk 0:01:54]}  Nxb4 {[%clk 0:01:44]} 19. Bxb7 {[%clk 0:01:46]}  Nd5 {[%clk 0:01:39]} 20. Bxd5 {[%clk 0:01:20]}  Qxd5 {[%clk 0:01:40]} 21. Rfd1 {[%clk 0:01:18]}  Qc5 {[%clk 0:01:29]} 22. Rac1 {[%clk 0:01:15]} 1-0


[Site "https://www.chess.com"]

[Event "Titled Tuesday Blitz June 27 Late 2023"]
[White "Santos Ruiz, Miguel"]
[Black "Przybylski, Wojciech"]
[WhiteFideId "22291482"]
[BlackFideId "1117599"]
[WhiteElo "2763"]
[BlackElo "2589"]
[Result "0-1"]
[Round "11"]
[TimeControl "180+2"]
[Date "2023.06.27"]
[WhiteClock "0:00:36"]
[BlackClock "0:00:33"]
[Board "30"]

1. e4 {[%clk 0:03:00]}  e5 {[%clk 0:02:58]} 2. Nf3 {[%clk 0:03:01]}  Nf6 {[%clk 0:02:56]} 3. Nxe5 {[%clk 0:03:00]}  d6 {[%clk 0:02:56]} 4. Nd3 {[%clk 0:03:00]}  Nxe4 {[%clk 0:02:56]} 5. Qe2 {[%clk 0:03:01]}  Qe7 {[%clk 0:02:56]} 6. Nf4 {[%clk 0:03:01]}  Nf6 {[%clk 0:02:55]} 7. h4 {[%clk 0:03:01]}  Nbd7 {[%clk 0:02:53]} 8. d4 {[%clk 0:02:59]}  Qxe2+ {[%clk 0:02:50]} 9. Bxe2 {[%clk 0:02:59]}  d5 {[%clk 0:02:50]} 10. f3 {[%clk 0:02:58]}  c6 {[%clk 0:02:50]} 11. g4 {[%clk 0:02:55]}  h6 {[%clk 0:02:50]} 12. c3 {[%clk 0:02:49]}  Bd6 {[%clk 0:02:49]} 13. Kf2 {[%clk 0:02:48]}  Nf8 {[%clk 0:02:48]} 14. Bd3 {[%clk 0:02:43]}  Ne6 {[%clk 0:02:47]} 15. Ne2 {[%clk 0:02:38]}  Bd7 {[%clk 0:02:45]} 16. Nd2 {[%clk 0:02:37]}  O-O-O {[%clk 0:02:42]} 17. Nf1 {[%clk 0:02:36]}  g6 {[%clk 0:02:39]} 18. Nfg3 {[%clk 0:02:32]}  Rde8 {[%clk 0:02:38]} 19. Bd2 {[%clk 0:02:31]}  h5 {[%clk 0:02:34]} 20. g5 {[%clk 0:02:31]}  Ng8 {[%clk 0:02:33]} 21. f4 {[%clk 0:02:29]}  Ne7 {[%clk 0:02:32]} 22. Rhf1 {[%clk 0:02:22]}  Ng7 {[%clk 0:02:32]} 23. Ng1 {[%clk 0:02:15]}  Bg4 {[%clk 0:02:30]} 24. Nf3 {[%clk 0:02:14]}  Bxf3 {[%clk 0:02:28]} 25. Kxf3 {[%clk 0:02:13]}  Nef5 {[%clk 0:02:28]} 26. Nxf5 {[%clk 0:02:01]}  Nxf5 {[%clk 0:02:27]} 27. Bxf5+ {[%clk 0:02:02]}  gxf5 {[%clk 0:02:27]} 28. Rae1 {[%clk 0:02:02]}  Kd7 {[%clk 0:02:22]} 29. Rxe8 {[%clk 0:01:53]}  Rxe8 {[%clk 0:02:20]} 30. Rg1 {[%clk 0:01:54]}  Re6 {[%clk 0:02:19]} 31. Be3 {[%clk 0:01:52]}  b5 {[%clk 0:02:19]} 32. a4 {[%clk 0:01:50]}  Kc7 {[%clk 0:02:13]} 33. axb5 {[%clk 0:01:48]}  cxb5 {[%clk 0:02:13]} 34. Ra1 {[%clk 0:01:45]}  Kb7 {[%clk 0:02:11]} 35. b3 {[%clk 0:01:45]}  a6 {[%clk 0:02:10]} 36. Rf1 {[%clk 0:01:41]}  Kc6 {[%clk 0:02:09]} 37. Ke2 {[%clk 0:01:41]}  Bc7 {[%clk 0:02:04]} 38. Kd3 {[%clk 0:01:40]}  a5 {[%clk 0:02:02]} 39. Rc1 {[%clk 0:01:35]}  Bd6 {[%clk 0:01:50]} 40. c4 {[%clk 0:01:35]}  dxc4+ {[%clk 0:01:49]} 41. bxc4 {[%clk 0:01:35]}  bxc4+ {[%clk 0:01:50]} 42. Rxc4+ {[%clk 0:01:32]}  Kd5 {[%clk 0:01:50]} 43. Rc8 {[%clk 0:01:27]}  Re7 {[%clk 0:01:46]} 44. Ra8 {[%clk 0:01:26]}  Bb4 {[%clk 0:01:39]} 45. Rd8+ {[%clk 0:01:20]}  Bd6 {[%clk 0:01:39]} 46. Bd2 {[%clk 0:01:20]}  Re4 {[%clk 0:01:27]} 47. Be3 {[%clk 0:01:12]}  Re7 {[%clk 0:01:20]} 48. Ra8 {[%clk 0:01:12]}  Bb4 {[%clk 0:01:19]} 49. Ra6 {[%clk 0:01:07]}  Rc7 {[%clk 0:01:16]} 50. Bd2 {[%clk 0:01:06]}  Bxd2 {[%clk 0:01:15]} 51. Kxd2 {[%clk 0:01:06]}  Kxd4 {[%clk 0:01:12]} 52. Rxa5 {[%clk 0:01:04]}  Ke4 {[%clk 0:01:12]} 53. Ra4+ {[%clk 0:01:02]}  Kf3 {[%clk 0:01:12]} 54. Kd3 {[%clk 0:00:55]}  Rd7+ {[%clk 0:01:11]} 55. Kc4 {[%clk 0:00:54]}  Kxf4 {[%clk 0:01:09]} 56. Kc5+ {[%clk 0:00:53]}  Kg3 {[%clk 0:01:09]} 57. Kc6 {[%clk 0:00:54]}  Rd1 {[%clk 0:01:07]} 58. Ra5 {[%clk 0:00:50]}  f4 {[%clk 0:01:05]} 59. Rf5 {[%clk 0:00:50]}  f3 {[%clk 0:00:45]} 60. Rxf7 {[%clk 0:00:49]}  Rd4 {[%clk 0:00:43]} 61. g6 {[%clk 0:00:45]}  Rxh4 {[%clk 0:00:42]} 62. g7 {[%clk 0:00:39]}  Rg4 {[%clk 0:00:42]} 63. Kd6 {[%clk 0:00:39]}  f2 {[%clk 0:00:41]} 64. Ke7 {[%clk 0:00:39]}  Kg2 {[%clk 0:00:36]} 65. Kf8 {[%clk 0:00:36]}  f1=Q {[%clk 0:00:33]} 0-1


[Site "https://www.chess.com"]

[Event "Titled Tuesday Blitz June 27 Late 2023"]
[White "Pinheiro, Iung Alicio de O."]
[Black "Hambleton, Aman"]
[WhiteFideId "2104350"]
[BlackFideId "2606577"]
[WhiteElo "2586"]
[BlackElo "2704"]
[Result "0-1"]
[Round "11"]
[TimeControl "180+2"]
[Date "2023.06.27"]
[WhiteClock "0:00:00"]
[BlackClock "0:00:02"]
[Board "32"]

1. e4 {[%clk 0:03:00]}  d5 {[%clk 0:02:54]} 2. exd5 {[%clk 0:02:59]}  Qxd5 {[%clk 0:02:55]} 3. Nc3 {[%clk 0:02:59]}  Qe5+ {[%clk 0:02:55]} 4. Be2 {[%clk 0:02:58]}  Bg4 {[%clk 0:02:53]} 5. d4 {[%clk 0:02:59]}  Bxe2 {[%clk 0:02:52]} 6. Ncxe2 {[%clk 0:02:46]}  Qd5 {[%clk 0:02:01]} 7. Nf3 {[%clk 0:02:44]}  c6 {[%clk 0:02:02]} 8. O-O {[%clk 0:02:41]}  e6 {[%clk 0:02:00]} 9. Nf4 {[%clk 0:02:35]}  Qd8 {[%clk 0:02:00]} 10. c4 {[%clk 0:02:34]}  Nf6 {[%clk 0:01:59]} 11. d5 {[%clk 0:02:21]}  cxd5 {[%clk 0:01:53]} 12. cxd5 {[%clk 0:02:15]}  Nxd5 {[%clk 0:01:54]} 13. Qb3 {[%clk 0:01:36]}  Qb6 {[%clk 0:00:48]} 14. Nxd5 {[%clk 0:00:49]}  Qxb3 {[%clk 0:00:48]} 15. Nc7+ {[%clk 0:00:47]}  Kd7 {[%clk 0:00:46]} 16. axb3 {[%clk 0:00:47]}  Kxc7 {[%clk 0:00:46]} 17. Bf4+ {[%clk 0:00:47]}  Bd6 {[%clk 0:00:42]} 18. Ne5 {[%clk 0:00:25]}  Nc6 {[%clk 0:00:31]} 19. Rac1 {[%clk 0:00:25]}  f6 {[%clk 0:00:12]} 20. Nd3 {[%clk 0:00:14]}  e5 {[%clk 0:00:07]} 21. Be3 {[%clk 0:00:13]}  Rhd8 {[%clk 0:00:04]} 22. Rc3 {[%clk 0:00:12]}  a6 {[%clk 0:00:02]} 23. Rfc1 {[%clk 0:00:10]}  Kd7 {[%clk 0:00:02]} 24. Bb6 {[%clk 0:00:09]}  Rdc8 {[%clk 0:00:02]} 25. Rd1 {[%clk 0:00:10]}  Ke6 {[%clk 0:00:02]} 26. Bc5 {[%clk 0:00:09]}  Bc7 {[%clk 0:00:03]} 27. Ba3 {[%clk 0:00:09]}  Bb6 {[%clk 0:00:03]} 28. Bc5 {[%clk 0:00:08]}  Ba5 {[%clk 0:00:03]} 29. b4 {[%clk 0:00:08]}  Bc7 {[%clk 0:00:04]} 30. Be3 {[%clk 0:00:08]}  Bd6 {[%clk 0:00:04]} 31. Bc5 {[%clk 0:00:08]}  Bb8 {[%clk 0:00:02]} 32. f4 {[%clk 0:00:08]}  exf4 {[%clk 0:00:02]} 33. Re1+ {[%clk 0:00:08]}  Kf7 {[%clk 0:00:02]} 34. Bb6 {[%clk 0:00:07]}  Be5 {[%clk 0:00:02]} 35. Rc4 {[%clk 0:00:06]}  g5 {[%clk 0:00:02]} 36. Nc5 {[%clk 0:00:06]}  Rab8 {[%clk 0:00:02]} 37. Nd7 {[%clk 0:00:06]}  Ra8 {[%clk 0:00:02]} 38. Nc5 {[%clk 0:00:05]}  Nd4 {[%clk 0:00:02]} 39. Re4 {[%clk 0:00:04]}  Nb5 {[%clk 0:00:02]} 40. h3 {[%clk 0:00:00]}  Nd6 {[%clk 0:00:02]} 0-1


[Site "https://www.chess.com"]